fUST/lending_fUST_20250905
["ID","MTS","AMOUNT","RATE_DAILY","PERIOD"]
[383597801,1757019033100,-480.0,0.00016009,2]
[383597802,1757019033112,-480.0,0.00016009,2]
[383597805,1757019033122,-480.0,0.00016009,2]
[383597809,1757019033131,-480.0,0.00016009,2]
[383597811,1757019033141,-480.0,0.00016009,2]
[383597814,1757019033151,-480.0,0.00016009,2]
[383597816,1757019033160,-480.0,0.00016009,2]
[383597819,1757019033170,-410.33385071,0.00016009,2]
[383597844,1757019033288,-69.66614929,0.00016009,2]
[383597847,1757019033298,-480.0,0.00016009,2]
[383597850,1757019033307,-480.0,0.00016009,2]
[383597853,1757019033317,-480.0,0.00016009,2]
[383597855,1757019033326,-480.0,0.00016009,2]
[383597858,1757019033336,-480.0,0.00016009,2]
[383597861,1757019033345,-480.0,0.00016009,2]
[383597864,1757019033355,-480.0,0.00016009,2]
[383597867,1757019033365,-480.0,0.00016009,2]
[383597870,1757019033374,-480.0,0.00016009,2]
[383597873,1757019033384,-480.0,0.00016009,2]
[383597876,1757019033393,-480.0,0.00016009,2]
[383597879,1757019033404,-480.0,0.00016009,2]
[383597882,1757019033413,-480.0,0.00016009,2]
[383597885,1757019033423,-480.0,0.00016009,2]
[383597888,1757019033432,-480.0,0.00016009,2]
[383597891,1757019033442,-480.0,0.00016009,2]
[383597894,1757019033451,-480.0,0.00016009,2]
[383597897,1757019033461,-480.0,0.00016009,2]
[383597900,1757019033470,-480.0,0.00016009,2]
[383597903,1757019033480,-480.0,0.00016009,2]
[383597906,1757019033489,-480.0,0.00016009,2]
[383597908,1757019033499,-480.0,0.00016009,2]
[383597910,1757019033508,-480.0,0.00016009,2]
[383597912,1757019033518,-269.14586845,0.00016009,2]
[383597914,1757019033527,-480.0,0.00016009,2]
[383597916,1757019033537,-480.0,0.00016009,2]
[383597918,1757019033546,-194.18497613,0.00016009,2]
[383597921,1757019033568,-285.81502387,0.00016009,2]
[383597923,1757019033578,-482.73678879,0.00016009,2]
[383597925,1757019033587,-480.0,0.00016009,2]
[383597927,1757019033596,-480.0,0.00016009,2]
[383597929,1757019033605,-480.0,0.00016009,2]
[383597931,1757019033615,-183.2289462,0.00016009,2]
[383598009,1757019038594,-250.30141901,0.00016008,2]
[383598010,1757019038605,-249.69858099,0.00016008,2]
[383598011,1757019038615,-500.0,0.00016008,2]
[383598012,1757019038624,-156.63742301,0.00016008,2]
[383598013,1757019038649,-343.36257699,0.00016008,2]
[383598015,1757019038658,-294.77945634,0.00016008,2]
[383598017,1757019038667,-301.78245724,0.00016008,2]
[383598018,1757019038677,-500.0,0.00016008,2]
[383598020,1757019038686,-500.0,0.00016008,2]
[383598022,1757019038695,-321.55268412,0.00016008,2]
[383598024,1757019038704,-640.43825337,0.00016008,2]
[383598025,1757019038714,-500.0,0.00016008,2]
[383598026,1757019038723,-500.0,0.00016008,2]
[383598027,1757019038733,-500.0,0.00016008,2]
[383598028,1757019038742,-632.88910111,0.00016008,2]
[383598029,1757019038751,-500.0,0.00016008,2]
[383598030,1757019038761,-500.0,0.00016008,2]
[383598031,1757019038770,-283.99857531,0.00016008,2]
[383598032,1757019038779,-277.35,0.00016009,2]
[383598033,1757019038789,-480.0,0.00016009,2]
[383598034,1757019038798,-480.0,0.00016009,2]
[383598035,1757019038807,-480.0,0.00016009,2]
[383598036,1757019038817,-480.0,0.00016009,2]
[383598037,1757019038827,-480.0,0.00016009,2]
[383598038,1757019038836,-480.0,0.00016009,2]
[383598039,1757019038845,-480.0,0.00016009,2]
[383598040,1757019038854,-480.0,0.00016009,2]
[383598041,1757019038863,-480.0,0.00016009,2]
[383598042,1757019038873,-422.15046608,0.00016009,2]
[383598043,1757019038882,-480.0,0.00016009,2]
[383598044,1757019038891,-480.0,0.00016009,2]
[383598045,1757019038900,-758.22,0.00016009,2]
[383598046,1757019038910,-480.0,0.00016009,2]
[383598047,1757019038921,-480.0,0.00016009,2]
[383598048,1757019038930,-480.0,0.00016009,2]
[383598049,1757019038940,-480.0,0.00016009,2]
[383598050,1757019038950,-480.0,0.00016009,2]
[383598051,1757019038959,-480.0,0.00016009,2]
[383598052,1757019038969,-480.0,0.00016009,2]
[383598053,1757019038978,-480.0,0.00016009,2]
[383598054,1757019038988,-480.0,0.00016009,2]
[383598055,1757019038998,-480.0,0.00016009,2]
[383598056,1757019039008,-318.9582976,0.00016009,2]
[383598057,1757019039149,-480.0,0.00016009,2]
[383598058,1757019039159,-480.0,0.00016009,2]
[383598059,1757019039169,-480.80762895,0.00016009,2]
[383598060,1757019039179,-480.0,0.00016009,2]
[383598061,1757019039188,-480.0,0.00016009,2]
[383598062,1757019039198,-480.0,0.00016009,2]
[383598063,1757019039207,-480.0,0.00016009,2]
[383598064,1757019039217,-480.0,0.00016009,2]
[383598065,1757019039226,-480.0,0.00016009,2]
[383598066,1757019039236,-480.0,0.00016009,2]
[383598067,1757019039245,-517.83032813,0.00016009,2]
[383598068,1757019039255,-611.26877476,0.00016009,2]
[383598069,1757019039265,-480.0,0.00016009,2]
[383598070,1757019039275,-480.0,0.00016009,2]
[383598071,1757019039285,-480.0,0.00016009,2]
[383598072,1757019039295,-480.0,0.00016009,2]
[383598073,1757019039304,-480.0,0.00016009,2]
[383598074,1757019039314,-480.0,0.00016009,2]
[383598075,1757019039323,-480.0,0.00016009,2]
[383598076,1757019039333,-480.0,0.00016009,2]
[383598077,1757019039342,-480.0,0.00016009,2]
[383598078,1757019039352,-480.0,0.00016009,2]
[383598079,1757019039361,-480.0,0.00016009,2]
[383598080,1757019039370,-480.0,0.00016009,2]
[383598081,1757019039380,-480.0,0.00016009,2]
[383598082,1757019039389,-480.0,0.00016009,2]
[383598083,1757019039399,-480.0,0.00016009,2]
[383598084,1757019039409,-480.0,0.00016009,2]
[383598085,1757019039419,-480.0,0.00016009,2]
[383598086,1757019039428,-481.68766409,0.00016009,2]
[383598087,1757019039437,-480.0,0.00016009,2]
[383598088,1757019039447,-480.0,0.00016009,2]
[383598089,1757019039456,-480.0,0.00016009,2]
[383598090,1757019039466,-480.0,0.00016009,2]
[383598091,1757019039475,-480.0,0.00016009,2]
[383598092,1757019039484,-480.0,0.00016009,2]
[383598093,1757019039493,-480.0,0.00016009,2]
[383598094,1757019039503,-480.0,0.00016009,2]
[383598095,1757019039512,-480.0,0.00016009,2]
[383598096,1757019039521,-480.0,0.00016009,2]
[383598097,1757019039531,-480.0,0.00016009,2]
[383598098,1757019039540,-480.0,0.00016009,2]
[383598099,1757019039549,-480.0,0.00016009,2]
[383598100,1757019039558,-480.0,0.00016009,2]
[383598101,1757019039567,-480.0,0.00016009,2]
[383598102,1757019039576,-480.0,0.00016009,2]
[383598103,1757019039586,-480.0,0.00016009,2]
[383598104,1757019039595,-480.0,0.00016009,2]
[383598105,1757019039604,-480.0,0.00016009,2]
[383598106,1757019039614,-480.0,0.00016009,2]
[383598107,1757019039623,-480.0,0.00016009,2]
[383598108,1757019039633,-480.0,0.00016009,2]
[383598109,1757019039642,-480.0,0.00016009,2]
[383598110,1757019039652,-480.0,0.00016009,2]
[383598111,1757019039661,-480.0,0.00016009,2]
[383598112,1757019039670,-480.0,0.00016009,2]
[383598113,1757019039679,-480.0,0.00016009,2]
[383598114,1757019039689,-480.0,0.00016009,2]
[383598115,1757019039698,-480.0,0.00016009,2]
[383598116,1757019039707,-480.0,0.00016009,2]
[383598117,1757019039716,-480.0,0.00016009,2]
[383598118,1757019039726,-480.0,0.00016009,2]
[383598119,1757019039736,-480.0,0.00016009,2]
[383598120,1757019039745,-499.27,0.00016009,2]
[383598121,1757019039755,-480.0,0.00016009,2]
[383598122,1757019039765,-480.0,0.00016009,2]
[383598123,1757019039775,-480.0,0.00016009,2]
[383598124,1757019039784,-480.0,0.00016009,2]
[383598125,1757019039793,-480.0,0.00016009,2]
[383598126,1757019039803,-362.9,0.00016009,2]
[383598127,1757019039812,-480.0,0.00016009,2]
[383598128,1757019039822,-480.0,0.00016009,2]
[383598129,1757019039831,-480.0,0.00016009,2]
[383598130,1757019039840,-480.0,0.00016009,2]
[383598131,1757019039849,-480.0,0.00016009,2]
[383598132,1757019039859,-480.0,0.00016009,2]
[383598133,1757019039868,-480.0,0.00016009,2]
[383598134,1757019039877,-480.0,0.00016009,2]
[383598135,1757019039887,-305.8465282,0.00016009,2]
[383598136,1757019039896,-480.0,0.00016009,2]
[383598137,1757019039906,-480.0,0.00016009,2]
[383598138,1757019039915,-480.0,0.00016009,2]
[383598139,1757019039924,-480.0,0.00016009,2]
[383598140,1757019039933,-480.0,0.00016009,2]
[383598141,1757019039942,-480.0,0.00016009,2]
[383598142,1757019039952,-480.0,0.00016009,2]
[383598143,1757019039961,-585.69997807,0.00016009,2]
[383598144,1757019039971,-480.0,0.00016009,2]
[383598145,1757019039980,-480.0,0.00016009,2]
[383598146,1757019039990,-346.34804989,0.00016009,2]
[383598147,1757019040000,-480.0,0.00016009,2]
[383598148,1757019040009,-480.0,0.00016009,2]
[383598149,1757019040019,-480.0,0.00016009,2]
[383598150,1757019040028,-480.0,0.00016009,2]
[383598151,1757019040037,-480.0,0.00016009,2]
[383598152,1757019040047,-480.0,0.00016009,2]
[383598153,1757019040056,-480.0,0.00016009,2]
[383598154,1757019040065,-480.0,0.00016009,2]
[383598155,1757019040075,-480.0,0.00016009,2]
[383598156,1757019040084,-480.0,0.00016009,2]
[383598157,1757019040095,-480.0,0.00016009,2]
[383598158,1757019040104,-480.0,0.00016009,2]
[383598159,1757019040114,-480.0,0.00016009,2]
[383598160,1757019040123,-480.0,0.00016009,2]
[383598162,1757019040133,-480.0,0.00016009,2]
[383598164,1757019040143,-480.0,0.00016009,2]
[383598165,1757019040153,-480.0,0.00016009,2]
[383598166,1757019040164,-480.0,0.00016009,2]
[383598167,1757019040174,-480.0,0.00016009,2]
[383598168,1757019040183,-480.0,0.00016009,2]
[383598169,1757019040193,-480.0,0.00016009,2]
[383598170,1757019040202,-480.0,0.00016009,2]
[383598171,1757019040211,-480.0,0.00016009,2]
[383598172,1757019040221,-480.0,0.00016009,2]
[383598173,1757019040230,-480.0,0.00016009,2]
[383598174,1757019040239,-480.0,0.00016009,2]
[383598175,1757019040248,-480.0,0.00016009,2]
[383598176,1757019040257,-480.0,0.00016009,2]
[383598177,1757019040267,-480.0,0.00016009,2]
[383598178,1757019040276,-480.0,0.00016009,2]
[383598179,1757019040285,-480.0,0.00016009,2]
[383598180,1757019040295,-480.0,0.00016009,2]
[383598182,1757019040304,-480.0,0.00016009,2]
[383598184,1757019040313,-480.0,0.00016009,2]
[383598185,1757019040323,-480.0,0.00016009,2]
[383598186,1757019040332,-480.0,0.00016009,2]
[383598187,1757019040341,-151.0,0.00016009,2]
[383598188,1757019040351,-266.85899,0.00016009,2]
[383598189,1757019040360,-500.0,0.00016009,2]
[383598190,1757019040370,-500.0,0.00016009,2]
[383598191,1757019040380,-237.19,0.00016009,2]
[383598192,1757019040390,-480.0,0.00016009,2]
[383598193,1757019040400,-480.0,0.00016009,2]
[383598194,1757019040410,-480.0,0.00016009,2]
[383598195,1757019040419,-480.0,0.00016009,2]
[383598196,1757019040428,-254.84624933,0.00016009,2]
[383598197,1757019040439,-480.0,0.00016009,2]
[383598198,1757019040448,-203.15181488,0.00016098,2]
[383598199,1757019040457,-160.0,0.00016098,2]
[383598200,1757019040466,-54382.06576864,0.00016183,2]
[383598201,1757019040764,-460.95174316,0.00016009,2]
[383598202,1757019040777,-19.04825684,0.00016009,2]
[383598203,1757019040786,-437.35174316,0.00016183,2]
[383598204,1757019040797,-572.325,0.00016183,2]
[383598205,1757019040820,-49119.41093347,0.00016183,2]
[383598206,1757019040831,-267.0,0.00016183,2]
[383598214,1757019043728,-480.0,0.00016009,2]
[383598215,1757019043738,-423.21170726,0.00016009,2]
[383598216,1757019043748,-475.91779522,0.00016009,2]
[383598217,1757019043782,-4.08220478,0.00016009,2]
[383598218,1757019043791,-275.91779522,0.00016173,3]
[383598242,1757019627539,4946.02681992,0.00023167,30]
[383598244,1757019648115,544.189449,0.00013562,2]
[383598245,1757019671685,544.189449,0.00013562,2]
[383598246,1757019694455,544.189449,0.00013562,2]
[383598247,1757019718243,544.189449,0.00013562,2]
[383598251,1757019741670,544.189449,0.00013562,2]
[383598252,1757019764399,544.189449,0.00013562,2]
[383598253,1757019787248,544.189449,0.00013562,2]
[383598254,1757019810367,544.189449,0.00013562,2]
[383598255,1757019818587,203.94560055,0.00013599,2]
[383598256,1757019832785,544.189449,0.00013562,2]
[383598257,1757019856043,544.189449,0.00013562,2]
[383598258,1757019878531,544.189449,0.00013562,2]
[383598259,1757019900861,544.189449,0.00013562,2]
[383598260,1757019923475,544.189449,0.00013562,2]
[383598261,1757019947255,544.189449,0.00013562,2]
[383598262,1757019970687,544.189449,0.00013562,2]
[383598263,1757019993000,544.189449,0.00013562,2]
[383598265,1757020016224,544.189449,0.00013562,2]
[383598266,1757020040237,544.189449,0.00013562,2]
[383598267,1757020041104,-485.55319765,0.00013699,2]
[383598268,1757020156143,-58.63625135,0.00013699,2]
[383598322,1757020237711,-188.149304,0.00014798,2]
[383598323,1757020237720,-188.149304,0.00014947,2]
[383598324,1757020237730,-191.65139624,0.00015161,2]
[383598325,1757020237778,-435.58558242,0.00015161,2]
[383598326,1757020237792,-372.76302134,0.00015161,2]
[383598327,1757020237801,-531.104126,0.00015737,2]
[383598328,1757020237812,-160.0,0.00015836,2]
[383598329,1757020237823,-160.0,0.00015837,2]
[383598330,1757020237833,-531.10412598,0.00015897,2]
[383598331,1757020237844,-203.15181488,0.000159,2]
[383598332,1757020237854,-247.54016035,0.00015909,2]
[383598333,1757020237864,-1730.06315316,0.00015909,2]
[383598334,1757020237873,-1200.0,0.00016005,2]
[383598335,1757020237885,-300.0,0.00016007,2]
[383598336,1757020237894,-181.43212234,0.00016008,2]
[383598337,1757020238030,-40.07976523,0.00016008,2]
[383598359,1757020240081,-459.92023477,0.00016008,2]
[383598361,1757020240090,-309.33317503,0.00016008,2]
[383598363,1757020240100,-500.0,0.00016008,2]
[383598365,1757020240109,-287.87220898,0.00016008,2]
[383598366,1757020240119,-480.0,0.00016008,2]
[383598367,1757020240128,-480.0,0.00016008,2]
[383598368,1757020240137,-362.83760743,0.00016008,2]
[383598369,1757020240147,-480.0,0.00016008,2]
[383598370,1757020240156,-480.0,0.00016008,2]
[383598371,1757020240166,-480.0,0.00016008,2]
[383598372,1757020240175,-480.0,0.00016008,2]
[383598373,1757020240184,-480.0,0.00016008,2]
[383598374,1757020240194,-480.0,0.00016008,2]
[383598375,1757020240204,-480.0,0.00016008,2]
[383598376,1757020240213,-480.0,0.00016008,2]
[383598377,1757020240223,-611.82462032,0.00016008,2]
[383598378,1757020240232,-483.65213712,0.00016008,2]
[383598379,1757020240242,-480.0,0.00016008,2]
[383598380,1757020240251,-480.0,0.00016008,2]
[383598381,1757020240260,-480.0,0.00016008,2]
[383598382,1757020240270,-480.0,0.00016008,2]
[383598383,1757020240279,-480.0,0.00016008,2]
[383598384,1757020240288,-480.0,0.00016008,2]
[383598385,1757020240297,-480.0,0.00016008,2]
[383598386,1757020240307,-480.0,0.00016008,2]
[383598387,1757020240316,-480.0,0.00016008,2]
[383598388,1757020240326,-480.0,0.00016008,2]
[383598389,1757020240336,-587.14643588,0.00016008,2]
[383598390,1757020240345,-485.74319213,0.00016008,2]
[383598391,1757020240354,-480.0,0.00016008,2]
[383598392,1757020240364,-480.0,0.00016008,2]
[383598393,1757020240373,-480.0,0.00016008,2]
[383598394,1757020240382,-480.0,0.00016008,2]
[383598395,1757020240391,-480.0,0.00016008,2]
[383598396,1757020240401,-480.0,0.00016008,2]
[383598397,1757020240412,-480.0,0.00016008,2]
[383598398,1757020240422,-544.19,0.00016008,2]
[383598399,1757020240431,-480.0,0.00016008,2]
[383598400,1757020240440,-480.0,0.00016008,2]
[383598401,1757020240450,-480.0,0.00016008,2]
[383598402,1757020240459,-136.66341685,0.00016008,2]
[383598403,1757020240472,-343.33658315,0.00016008,2]
[383598404,1757020240482,-224.84481749,0.00016008,2]
[383598416,1757020242924,-12.78851724,0.00016008,2]
[383598417,1757020242934,-480.0,0.00016008,2]
[383598418,1757020242944,-480.0,0.00016008,2]
[383598419,1757020242953,-336.81608054,0.00016008,2]
[383598420,1757020243084,-143.18391946,0.00016008,2]
[383598421,1757020243094,-480.0,0.00016008,2]
[383598422,1757020243103,-480.0,0.00016008,2]
[383598423,1757020243113,-480.0,0.00016008,2]
[383598424,1757020243123,-480.0,0.00016008,2]
[383598425,1757020243132,-480.0,0.00016008,2]
[383598426,1757020243142,-164.44769559,0.00016008,2]
[383598445,1757020245955,-315.55230441,0.00016008,2]
[383598446,1757020245965,-480.0,0.00016008,2]
[383598447,1757020245975,-480.0,0.00016008,2]
[383598448,1757020245984,-480.0,0.00016008,2]
[383598449,1757020245994,-480.0,0.00016008,2]
[383598450,1757020246004,-480.0,0.00016008,2]
[383598451,1757020246014,-480.0,0.00016008,2]
[383598452,1757020246024,-480.0,0.00016008,2]
[383598453,1757020246033,-480.0,0.00016008,2]
[383598454,1757020246043,-480.0,0.00016008,2]
[383598455,1757020246052,-480.0,0.00016008,2]
[383598456,1757020246061,-480.0,0.00016008,2]
[383598457,1757020246071,-520.0,0.00016008,2]
[383598458,1757020246080,-480.0,0.00016008,2]
[383598459,1757020246089,-480.0,0.00016008,2]
[383598460,1757020246098,-480.0,0.00016008,2]
[383598461,1757020246108,-480.0,0.00016008,2]
[383598462,1757020246118,-591.38067548,0.00016008,2]
[383598463,1757020246129,-135.23932452,0.00016008,2]
[383598464,1757020246138,-480.0,0.00016008,2]
[383598465,1757020246147,-480.0,0.00016008,2]
[383598466,1757020246157,-199.91431909,0.00016008,2]
[383598467,1757020246166,-480.0,0.00016008,2]
[383598468,1757020246176,-480.0,0.00016009,2]
[383598469,1757020246186,-421.55447545,0.00016009,2]
[383598470,1757020246195,-480.0,0.00016009,2]
[383598471,1757020246206,-511.85571771,0.00016009,2]
[383598472,1757020246216,-480.0,0.00016009,2]
[383598473,1757020246225,-480.0,0.00016009,2]
[383598474,1757020246235,-480.0,0.00016009,2]
[383598475,1757020246244,-480.0,0.00016009,2]
[383598476,1757020246253,-480.0,0.00016009,2]
[383598478,1757020246263,-480.0,0.00016009,2]
[383598479,1757020246272,-480.0,0.00016009,2]
[383598480,1757020246281,-480.0,0.00016009,2]
[383598481,1757020246290,-151.0,0.00016009,2]
[383598482,1757020246299,-480.0,0.00016009,2]
[383598483,1757020246309,-480.0,0.00016009,2]
[383598484,1757020246318,-480.38405457,0.00016009,2]
[383598485,1757020246328,-480.0,0.00016009,2]
[383598486,1757020246337,-481.75840904,0.00016009,2]
[383598487,1757020246347,-480.0,0.00016009,2]
[383598488,1757020246357,-480.0,0.00016009,2]
[383598489,1757020246370,-480.0,0.00016009,2]
[383598490,1757020246380,-480.0,0.00016009,2]
[383598491,1757020246389,-464.96725658,0.00016009,2]
[383598492,1757020246401,-15.03274342,0.00016009,2]
[383598493,1757020246410,-480.0,0.00016009,2]
[383598494,1757020246420,-480.0,0.00016009,2]
[383598495,1757020246430,-480.0,0.00016009,2]
[383598496,1757020246440,-480.0,0.00016009,2]
[383598497,1757020246451,-480.0,0.00016009,2]
[383598498,1757020246460,-480.0,0.00016009,2]
[383598499,1757020246471,-480.0,0.00016009,2]
[383598500,1757020246481,-480.0,0.00016009,2]
[383598501,1757020246490,-480.0,0.00016009,2]
[383598502,1757020246499,-218.54856176,0.00016009,2]
[383598503,1757020246509,-480.0,0.00016009,2]
[383598504,1757020246518,-480.0,0.00016009,2]
[383598505,1757020246527,-480.0,0.00016009,2]
[383598506,1757020246536,-480.0,0.00016009,2]
[383598507,1757020246545,-480.0,0.00016009,2]
[383598508,1757020246555,-480.0,0.00016009,2]
[383598509,1757020246564,-480.0,0.00016009,2]
[383598510,1757020246574,-480.0,0.00016009,2]
[383598511,1757020246583,-151.0,0.00016009,2]
[383598512,1757020246593,-480.0,0.00016009,2]
[383598513,1757020246603,-315.26906731,0.00016009,2]
[383598514,1757020246612,-480.0,0.00016009,2]
[383598515,1757020246621,-480.0,0.00016009,2]
[383598516,1757020246630,-480.0,0.00016009,2]
[383598517,1757020246639,-480.0,0.00016009,2]
[383598518,1757020246648,-480.0,0.00016009,2]
[383598519,1757020246657,-423.53794407,0.00016009,2]
[383598520,1757020246667,-480.0,0.00016009,2]
[383598521,1757020246676,-403.13955473,0.00016009,2]
[383598522,1757020246688,-76.86044527,0.00016009,2]
[383598523,1757020246697,-480.0,0.00016009,2]
[383598524,1757020246706,-480.0,0.00016009,2]
[383598525,1757020246715,-480.0,0.00016009,2]
[383598526,1757020246724,-480.0,0.00016009,2]
[383598527,1757020246733,-480.0,0.00016009,2]
[383598528,1757020246742,-480.0,0.00016009,2]
[383598529,1757020246751,-480.0,0.00016009,2]
[383598530,1757020246765,-480.0,0.00016009,2]
[383598531,1757020246774,-480.0,0.00016009,2]
[383598532,1757020246783,-480.0,0.00016009,2]
[383598533,1757020246792,-151.0,0.00016009,2]
[383598534,1757020246802,-480.0,0.00016009,2]
[383598535,1757020246811,-433.28805066,0.00016009,2]
[383598536,1757020246820,-480.0,0.00016009,2]
[383598537,1757020246830,-339.98635412,0.00016009,2]
[383598538,1757020246839,-480.0,0.00016009,2]
[383598539,1757020246849,-480.0,0.00016009,2]
[383598540,1757020246860,-480.0,0.00016009,2]
[383598541,1757020246871,-430.86515013,0.00016009,2]
[383598542,1757020246897,-49.13484987,0.00016009,2]
[383598543,1757020246907,-500.89,0.00016009,2]
[383598544,1757020246917,-480.0,0.00016009,2]
[383598545,1757020246927,-480.0,0.00016009,2]
[383598546,1757020246937,-480.0,0.00016009,2]
[383598547,1757020246947,-151.0,0.00016009,2]
[383598548,1757020246956,-605.95117294,0.00016009,2]
[383598549,1757020246966,-151.0,0.00016009,2]
[383598550,1757020246975,-151.0,0.00016009,2]
[383598551,1757020246984,-151.0,0.00016009,2]
[383598552,1757020246993,-151.0,0.00016009,2]
[383598553,1757020247003,-151.0,0.00016009,2]
[383598554,1757020247012,-316.18091789,0.00016009,2]
[383598558,1757020833033,540.036894,0.00013562,2]
[383598559,1757020855982,540.036894,0.00013562,2]
[383598560,1757020879315,540.036894,0.00013562,2]
[383598561,1757020902204,540.036894,0.00013562,2]
[383598562,1757020925465,540.036894,0.00013562,2]
[383598563,1757020949067,540.036894,0.00013562,2]
[383598564,1757020971399,540.036894,0.00013562,2]
[383598565,1757020994196,540.036894,0.00013562,2]
[383598566,1757021016476,540.036894,0.00013562,2]
[383598567,1757021039365,540.036894,0.00013562,2]
[383598568,1757021062657,540.036894,0.00013562,2]
[383598569,1757021085024,540.036894,0.00013562,2]
[383598570,1757021108284,540.036894,0.00013562,2]
[383598573,1757021131241,540.036894,0.00013562,2]
[383598575,1757021154076,540.036894,0.00013562,2]
[383598576,1757021177487,477.49562299,0.00013562,2]
[383598577,1757021230048,-397.22737379,0.00013699,2]
[383598578,1757021240109,-142.80952021,0.00013699,2]
[383598579,1757021240128,-158.71984996,0.00014785,2]
[383598580,1757021240148,-162.0504664,0.00014885,2]
[383598581,1757021244196,-26.0988386,0.00014885,2]
[383598582,1757021244216,-1195.6349818,0.00014899,2]
[383598583,1757021244236,-794.66565266,0.00014916,2]
[383598671,1757021437918,-205.33434734,0.00014916,2]
[383598673,1757021437929,-500.0,0.00015814,2]
[383598675,1757021437939,-300.0,0.00015814,2]
[383598677,1757021437950,-247.0,0.00015814,2]
[383598680,1757021437961,-64.05565266,0.00015814,2]
[383598682,1757021437974,-360.899999,0.00015814,2]
[383598685,1757021437988,-55.04434834,0.00015814,2]
[383598687,1757021437999,-2807.45097291,0.00015815,2]
[383598689,1757021438009,-50015.88295132,0.00015815,2]
[383598691,1757021438023,-6075.65124062,0.00015815,2]
[383598822,1757021440326,-480.0,0.00015814,2]
[383598824,1757021440335,-426.0,0.00015815,2]
[383598860,1757021976636,360.0,0.00027397,120]
[383598861,1757022080691,176.37294467,0.0001525,6]
[383598862,1757022301378,176.37294467,0.00013562,2]
[383598863,1757022349124,-333.40767059,0.00013699,2]
[383598864,1757022428094,-200.37860441,0.00013699,2]
[383598865,1757022428116,-1.26134289,0.00015573,2]
[383598866,1757022429094,-248.73865711,0.00015573,2]
[383598867,1757022429115,-194.50745561,0.00015615,2]
[383598868,1757022446085,-71.04460738,0.00015615,2]
[383598869,1757022446107,-216.59764028,0.00015705,2]
[383598870,1757022446129,-202.08048971,0.00015715,2]
[383598872,1757022632292,-300.0,0.00015494,2]
[383598873,1757022632302,-109.51317813,0.00015495,2]
[383598874,1757022632349,-366.52339999,0.00015495,2]
[383598875,1757022632358,-95.69160001,0.00015495,2]
[383598876,1757022632373,-964.53441776,0.00015495,2]
[383598997,1757022638298,-843.9202947,0.00015495,2]
[383598999,1757022638308,-4280.04487384,0.00015495,2]
[383599001,1757022638317,-265.55206299,0.00015698,2]
[383599003,1757022638327,-1343.63442457,0.00015714,2]
[383599005,1757022638337,-563.58180412,0.00015798,2]
[383599007,1757022638348,-480.0,0.00015798,2]
[383599009,1757022638357,-480.0,0.00015798,2]
[383599011,1757022638367,-480.0,0.00015798,2]
[383599013,1757022638376,-480.0,0.00015798,2]
[383599015,1757022638385,-480.0,0.00015798,2]
[383599017,1757022638395,-480.0,0.00015798,2]
[383599019,1757022638405,-480.0,0.00015799,2]